bitfinex/quotes_BTCUSD_20240731
["timestamp","ask_amount","ask_price","bid_price","bid_amount"]
[1722427103859,0.17248226,66197.0,66196.0,0.37243304]
[1722427104078,0.18619913,66197.0,66196.0,0.37243304]
[1722427104289,0.48832713,66197.0,66196.0,0.37243304]
[1722427104708,0.48832713,66197.0,66196.0,0.23353304]
[1722427106190,0.18619913,66197.0,66196.0,0.23353304]
[1722427106395,0.1870573,66197.0,66196.0,0.31183304]
[1722427106645,0.18619913,66197.0,66196.0,0.31183304]
[1722427106853,0.02633384,66197.0,66196.0,0.31183304]
[1722427107060,0.1861991,66197.0,66196.0,0.31183304]
[1722427107291,0.18623813,66197.0,66196.0,0.31183304]
[1722427109380,0.03517413,66197.0,66196.0,0.31183304]
[1722427109752,0.03583813,66197.0,66196.0,0.31183304]
[1722427109952,0.18623813,66197.0,66196.0,0.31183304]
[1722427110155,0.18623793,66197.0,66196.0,0.31183304]
[1722427110356,0.17248203,66197.0,66196.0,0.31183304]
[1722427110608,0.18622214,66197.0,66196.0,0.31183304]
[1722427112290,0.03515814,66197.0,66196.0,0.37533304]
[1722427112876,0.03515814,66197.0,66196.0,0.36892304]
[1722427113463,0.012,66197.0,66196.0,0.36892304]
[1722427113667,0.02141758,66197.0,66196.0,0.36892304]
[1722427113874,0.03516306,66197.0,66196.0,0.36892304]
[1722427116868,0.02141758,66197.0,66196.0,0.36892304]
[1722427117069,0.03514427,66197.0,66196.0,0.36892304]
[1722427117771,0.0357171,66197.0,66196.0,0.36892304]
[1722427118005,0.03514427,66197.0,66196.0,0.36892304]
[1722427118701,0.17887381,66197.0,66196.0,0.36892304]
[1722427120142,0.17887514,66197.0,66196.0,0.36892304]
[1722427120346,0.1788561,66197.0,66196.0,0.36892304]
[1722427121299,0.1788561,66197.0,66196.0,0.51998904]
[1722427121499,0.02570765,66197.0,66196.0,0.82212204]
[1722427123484,0.012,66197.0,66196.0,0.82212204]
[1722427123690,0.0256899,66197.0,66196.0,0.82212204]
[1722427123892,0.012,66197.0,66196.0,0.82212204]
[1722427124289,0.0256899,66197.0,66196.0,0.51998904]
[1722427126703,0.012,66197.0,66196.0,0.51998904]
[1722427127225,0.02567925,66197.0,66196.0,0.51998904]
[1722427127762,0.02567925,66197.0,66196.0,0.52090204]
[1722427128194,0.02650925,66197.0,66196.0,0.52090204]
[1722427130026,0.01283,66197.0,66196.0,0.52090204]
[1722427130228,0.02649946,66197.0,66196.0,0.52090204]
[1722427131400,0.02649946,66197.0,66196.0,0.36983604]
[1722427133607,0.01283,66197.0,66196.0,0.36983604]
[1722427133795,0.02649947,66197.0,66196.0,0.36983604]
[1722427133935,0.04016894,66197.0,66196.0,0.36983604]
[1722427134137,0.03976804,66197.0,66196.0,0.36983604]
[1722427134416,0.03976804,66197.0,66196.0,0.37009497]
[1722427135979,0.03976804,66197.0,66196.0,0.36983604]
[1722427136560,0.25966257,66197.0,66196.0,0.14113604]
[1722427136760,0.71488429,66197.0,66196.0,0.22803604]
[1722427137046,0.57547095,66197.0,66196.0,0.22803604]
[1722427137254,0.27334295,66197.0,66196.0,0.22803604]
[1722427137617,0.19084295,66197.0,66196.0,0.22803604]
[1722427138495,0.03977895,66197.0,66196.0,0.31003604]
[1722427138699,0.03977895,66197.0,66196.0,0.37023604]
[1722427138910,0.19084295,66197.0,66196.0,0.37023604]
[1722427139076,0.17717348,66197.0,66196.0,0.37023604]
[1722427139716,0.1634931,66197.0,66196.0,0.37023604]
[1722427139918,0.0261284,66197.0,66196.0,0.37023604]
[1722427140321,0.1642504,66197.0,66196.0,0.37023604]
[1722427140625,0.17794717,66197.0,66196.0,0.37023604]
[1722427140825,0.17718987,66197.0,66196.0,0.37023604]
[1722427141141,0.02612587,66197.0,66196.0,0.37023604]
[1722427143422,0.0124291,66197.0,66196.0,0.37023604]
[1722427143821,0.02607691,66197.0,66196.0,0.37023604]
[1722427145571,0.17714091,66197.0,66196.0,0.22803604]
[1722427145781,0.33022994,66197.0,66196.0,0.22803604]
[1722427146581,0.17714091,66197.0,66196.0,0.22803604]
[1722427146777,0.31657996,66197.0,66196.0,0.22803604]
[1722427146954,0.33022565,66197.0,66196.0,0.22803604]
[1722427147173,0.17916165,66197.0,66196.0,0.22803604]
[1722427147428,0.17916165,66197.0,66196.0,0.36973604]
[1722427149623,0.31026165,66197.0,66196.0,0.001913]
[1722427149830,0.31026165,66197.0,66196.0,0.088813]
[1722427149831,0.61978371,66197.0,66196.0,0.088813]
[1722427150050,0.25350969,66197.0,66196.0,0.088813]
[1722427150265,0.47503769,66197.0,66196.0,0.088813]
[1722427150466,0.48871289,66197.0,66196.0,0.088813]
[1722427153257,0.47503766,66197.0,66196.0,0.088813]
[1722427153441,0.17290966,66197.0,66196.0,0.088813]
[1722427153648,0.48874288,66197.0,66196.0,0.088813]
[1722427156573,0.47503787,66197.0,66196.0,0.088813]
[1722427157020,0.48871743,66197.0,66196.0,0.088813]
[1722427157637,0.03552543,66197.0,66196.0,0.23944604]
[1722427159322,0.03552543,66197.0,66196.0,0.15063304]
[1722427159604,0.03552543,66197.0,66196.0,0.23753304]
[1722427159992,0.02184587,66197.0,66196.0,0.23753304]
[1722427160432,0.03552078,66197.0,66196.0,0.23753304]
[1722427162379,0.03552078,66197.0,66196.0,0.32033304]
[1722427162584,0.02610401,66197.0,66196.0,0.83863204]
[1722427162955,0.02610401,66197.0,66196.0,0.38543304]
[1722427163065,0.02610401,66197.0,66196.0,0.53649904]
[1722427163470,0.0124291,66197.0,66196.0,0.53649904]
[1722427163666,0.02604952,66197.0,66196.0,0.53649904]
[1722427165027,0.02604952,66197.0,66196.0,0.83863204]
[1722427166815,0.0124291,66197.0,66196.0,0.53649904]
[1722427167018,0.02605858,66197.0,66196.0,0.53649904]
[1722427167214,0.02605858,66197.0,66196.0,0.83863204]
[1722427167645,0.02605858,66197.0,66196.0,0.53649904]
[1722427167864,0.02605858,66197.0,66196.0,0.83863204]
[1722427168220,0.02605858,66197.0,66196.0,0.53649904]
[1722427169741,0.00083,66199.0,66196.0,4.94492504]
[1722427169949,0.09152494,66199.0,66198.0,0.60381704]
[1722427170117,0.09152494,66199.0,66198.0,4.81660438]
[1722427170329,0.06884985,66199.0,66198.0,4.73326038]
[1722427170545,0.06884985,66199.0,66198.0,4.57237138]
[1722427170714,0.06884985,66199.0,66198.0,4.40785038]
[1722427170921,0.00083,66199.0,66198.0,4.40784671]
[1722427171360,0.00083,66199.0,66198.0,4.32263471]
[1722427171730,0.04615625,66199.0,66198.0,4.15221171]
[1722427171947,0.05315625,66199.0,66198.0,3.89032571]
[1722427172321,0.04615625,66199.0,66198.0,3.80437371]
[1722427172532,0.04615625,66199.0,66198.0,3.50365404]
[1722427172777,0.04615625,66199.0,66198.0,1.37676304]
[1722427173196,0.00083,66199.0,66198.0,1.37976304]
[1722427173468,0.06880666,66199.0,66198.0,1.07764004]
[1722427175058,0.00083,66199.0,66198.0,1.07764004]
[1722427175556,0.00083,66199.0,66198.0,0.77551704]
[1722427175758,0.00083,66199.0,66198.0,0.45039404]
[1722427175913,0.00083,66199.0,66198.0,0.29933304]
[1722427176125,0.11412444,66199.0,66198.0,0.29933304]
[1722427176667,0.11410873,66199.0,66198.0,0.29933304]
[1722427177026,0.00083,66199.0,66198.0,0.29933304]
[1722427177501,0.11411001,66199.0,66198.0,0.29933304]
[1722427178671,0.11411001,66199.0,66198.0,0.45039404]
[1722427179074,0.00083,66199.0,66198.0,0.45039404]
[1722427179535,0.11410876,66199.0,66198.0,0.45039404]
[1722427179937,0.00083,66199.0,66198.0,0.45039404]
[1722427180571,0.0129244,66199.0,66198.0,0.45039404]
[1722427181594,0.0129244,66199.0,66198.0,0.29933304]
[1722427181828,0.0129244,66199.0,66198.0,0.45039404]
[1722427182814,0.0129244,66199.0,66198.0,0.29933304]
[1722427182938,0.0129244,66199.0,66198.0,0.45039404]
[1722427183139,0.00083,66199.0,66198.0,0.45039404]
[1722427183439,0.0129341,66199.0,66198.0,0.45039404]
[1722427183773,0.0250382,66199.0,66198.0,0.45039404]
[1722427185154,0.0250382,66199.0,66198.0,0.75251704]
[1722427185364,0.10354121,66199.0,66198.0,1.05464004]
[1722427185555,0.02503722,66199.0,66198.0,1.37976304]
[1722427185816,0.10353654,66199.0,66198.0,1.37976304]
[1722427185954,0.10353557,66199.0,66198.0,1.37976304]
[1722427186161,0.10353557,66199.0,66198.0,1.07764004]
[1722427186362,0.0129341,66199.0,66198.0,1.16454004]
[1722427186626,0.02499174,66199.0,66198.0,1.16454004]
[1722427186828,0.03705044,66199.0,66198.0,1.16454004]
[1722427186963,0.12765059,66199.0,66198.0,1.16454004]
[1722427187146,0.11559189,66199.0,66198.0,1.16454004]
[1722427188194,0.02499174,66199.0,66198.0,1.16454004]
[1722427189442,0.03704831,66199.0,66198.0,1.16454004]
[1722427189923,0.02499174,66199.0,66198.0,1.16454004]
[1722427190298,0.03704831,66199.0,66198.0,1.16454004]
[1722427190505,0.04910488,66199.0,66198.0,1.16454004]
[1722427190716,0.02494314,66199.0,66198.0,1.16454004]
[1722427192716,0.11554329,66199.0,66198.0,1.16454004]
[1722427193243,0.10346805,66199.0,66198.0,1.16454004]
[1722427193619,0.11553225,66199.0,66198.0,1.16454004]
[1722427194862,0.11553225,66199.0,66198.0,1.16461404]
[1722427195037,0.11553225,66199.0,66198.0,0.86249104]
[1722427195221,0.02495077,66199.0,66198.0,0.86249104]
[1722427195430,0.13817763,66199.0,66198.0,0.86249104]
[1722427196127,0.10125077,66199.0,66198.0,0.15370704]
[1722427196334,0.90704777,66199.0,66198.0,0.15370704]
[1722427196680,0.89498357,66199.0,66198.0,0.15370704]
[1722427196911,0.91645818,66199.0,66198.0,0.24060704]
[1722427197298,0.90704103,66199.0,66198.0,0.24060704]
[1722427197549,0.9164581,66199.0,66198.0,0.24060704]
[1722427197755,0.9164581,66199.0,66198.0,0.23760704]
[1722427198048,0.9204581,66199.0,66198.0,0.23760704]
[1722427198635,0.9164581,66199.0,66198.0,0.23760704]
[1722427198831,0.9194581,66199.0,66198.0,0.23760704]
[1722427199100,0.91004103,66199.0,66198.0,0.23760704]
[1722427199307,0.9194581,66199.0,66198.0,0.23760704]
[1722427199496,0.91004103,66199.0,66198.0,0.23760704]
[1722427199692,0.91404103,66199.0,66198.0,0.23760704]
[1722427199917,0.90198357,66199.0,66198.0,0.23760704]
[1722427200128,0.62135746,66199.0,66198.0,0.23760704]
[1722427200689,0.60930089,66199.0,66198.0,0.23760704]
[1722427201094,0.10562289,66199.0,66198.0,0.23760704]
[1722427201303,0.17096484,66199.0,66198.0,0.23760704]
[1722427201501,0.01990584,66199.0,66198.0,0.23760704]
[1722427201702,0.47308384,66199.0,66198.0,0.23760704]
[1722427201907,0.17096484,66199.0,66198.0,0.23760704]
[1722427202289,0.47008384,66199.0,66198.0,0.23760704]
[1722427202498,0.48050085,66199.0,66198.0,0.23760704]
[1722427202937,0.47650085,66199.0,66198.0,0.23760704]
[1722427203136,0.46442495,66199.0,66198.0,0.23760704]
[1722427203389,0.47850276,66199.0,66198.0,0.23760704]
[1722427203881,0.46908581,66199.0,66198.0,0.23760704]
[1722427205815,0.47850276,66199.0,66198.0,0.23760704]
[1722427206248,0.46908581,66199.0,66198.0,0.23760704]
[1722427206450,0.63142542,66199.0,66198.0,0.23760704]
[1722427206648,0.32931245,66199.0,66198.0,0.23760704]
[1722427206852,0.17638978,66199.0,66198.0,0.23760704]
[1722427207072,0.32931245,66199.0,66198.0,0.23760704]
[1722427207253,0.01591384,66199.0,66198.0,0.23760704]
[1722427207512,0.01591384,66199.0,66198.0,0.29950704]
[1722427208251,0.01491384,66199.0,66198.0,0.53266804]
[1722427208450,0.01491384,66199.0,66198.0,1.13691404]
[1722427208651,0.01491384,66199.0,66198.0,1.13791404]
[1722427209300,0.01291384,66199.0,66198.0,1.13791404]
[1722427209504,0.01391384,66199.0,66198.0,1.13791404]
[1722427209915,0.00083,66199.0,66198.0,1.13791404]
[1722427210120,0.01287622,66199.0,66198.0,1.13991404]
[1722427210345,0.01287622,66199.0,66198.0,1.13891404]
[1722427210547,0.01287622,66199.0,66198.0,1.14191404]
[1722427210855,0.01287622,66199.0,66198.0,0.38660704]
[1722427211039,0.01287622,66199.0,66198.0,0.005074]
[1722427211040,0.31499522,66199.0,66198.0,0.005074]
[1722427211151,0.81992622,66199.0,66198.0,0.005074]
[1722427211557,0.81992622,66199.0,66198.0,0.002074]
[1722427211763,0.81867322,66199.0,66198.0,0.003074]
[1722427212487,0.81867322,66199.0,66198.0,0.001074]
[1722427212686,0.89847322,66199.0,66198.0,0.001074]
[1722427213010,0.886427,66199.0,66198.0,0.001074]
[1722427213125,1.21404924,66199.0,66198.0,0.001074]
[1722427213326,1.21404924,66199.0,66198.0,7.4e-05]
[1722427213947,0.453213,66194.0,66193.0,0.057978]
[1722427214152,1.01176154,66194.0,66193.0,0.37394033]
[1722427214379,1.21149989,66194.0,66193.0,0.37394033]
[1722427214849,1.21305429,66194.0,66193.0,0.37394033]
[1722427215255,1.21405429,66194.0,66193.0,0.37994033]
[1722427215630,0.86141229,66194.0,66193.0,0.37994033]
[1722427215832,0.16746308,66194.0,66193.0,0.53057337]
[1722427216043,0.1536254,66194.0,66193.0,0.53057337]
[1722427216243,0.16581678,66194.0,66193.0,0.53257337]
[1722427216892,0.01474578,66194.0,66193.0,0.53257337]
[1722427217478,0.01599878,66194.0,66193.0,0.53257337]
[1722427217868,0.16581678,66194.0,66193.0,0.53257337]
[1722427218068,0.46921178,66194.0,66193.0,0.53257337]
[1722427218498,0.77135378,66194.0,66193.0,0.38194033]
[1722427218699,0.77010078,66194.0,66193.0,0.38194033]
[1722427218901,0.93233859,66194.0,66193.0,0.38194033]
[1722427219129,0.92290835,66194.0,66193.0,0.38194033]
[1722427219307,0.92013286,66194.0,66193.0,0.008]
[1722427219504,0.77948283,66194.0,66193.0,0.008]
[1722427219844,0.77006694,66194.0,66193.0,0.008]
[1722427220089,0.77948213,66194.0,66193.0,0.008]
[1722427220260,0.90998213,66194.0,66193.0,0.008]
[1722427220677,1.21212413,66194.0,66193.0,0.008]
[1722427221658,0.90998213,66194.0,66193.0,0.008]
[1722427222060,0.90948213,66194.0,66193.0,0.008]
[1722427222214,0.90006694,66194.0,66193.0,0.008]
[1722427222415,0.89732528,66194.0,66193.0,0.008]
[1722427222632,0.90946857,66194.0,66193.0,0.008]
[1722427225628,0.90946836,66194.0,66193.0,0.008]
[1722427225833,1.05008289,66194.0,66193.0,0.008]
[1722427226070,1.06226207,66194.0,66193.0,0.008]
[1722427226607,0.62962007,66194.0,66193.0,0.008]
[1722427226808,0.02364925,66194.0,66193.0,0.30183304]
[1722427227017,0.02490225,66194.0,66193.0,0.30183304]
[1722427227235,0.01423358,66194.0,66193.0,0.75505204]
[1722427227794,0.01423358,66194.0,66193.0,0.45290604]
[1722427228971,0.0020544,66194.0,66193.0,0.45290604]
[1722427229125,0.0020544,66194.0,66193.0,1.05811104]
[1722427229325,0.01424085,66194.0,66193.0,1.05811104]
[1722427229590,0.0699348,66194.0,66193.0,1.39525704]
[1722427229792,0.01424085,66194.0,66193.0,1.39525704]
[1722427230005,0.0020544,66194.0,66193.0,1.38325704]
[1722427230346,0.0010544,66194.0,66193.0,1.37725704]
[1722427230775,0.0020544,66194.0,66193.0,1.38825704]
[1722427231005,0.04730827,66194.0,66193.0,1.38825704]
[1722427231433,0.04730763,66194.0,66193.0,1.38825704]
[1722427231627,0.0020544,66194.0,66193.0,1.38625704]
[1722427231829,0.0030544,66194.0,66193.0,1.39325704]
[1722427232182,0.0483089,66194.0,66193.0,1.39325704]
[1722427232554,0.0030544,66194.0,66193.0,1.61065704]
[1722427234187,0.04831247,66194.0,66193.0,1.30851104]
[1722427234634,0.0030544,66194.0,66193.0,1.30851104]
[1722427234994,0.0030544,66194.0,66193.0,0.53014604]
[1722427235219,0.09358186,66194.0,66193.0,0.31274604]
[1722427235624,0.09358186,66194.0,66193.0,0.46402634]
[1722427235625,0.01523508,66194.0,66193.0,0.46402634]
[1722427235798,0.01524368,66194.0,66193.0,0.46402634]
[1722427236070,0.1284018,66194.0,66193.0,0.46381904]
[1722427236234,0.01524368,66194.0,66193.0,0.46412024]
[1722427236648,0.1284018,66194.0,66193.0,0.46412024]
[1722427236797,0.1284018,66194.0,66193.0,0.46381904]
[1722427236998,0.01524368,66194.0,66193.0,0.46381904]
[1722427237421,0.12842324,66194.0,66193.0,0.46381904]
[1722427237624,0.01524368,66194.0,66193.0,0.46381904]
[1722427238147,0.12842805,66194.0,66193.0,0.46381904]
[1722427238451,0.12842805,66194.0,66193.0,0.76596504]
[1722427238452,0.11623877,66194.0,66193.0,0.76596504]
[1722427238654,0.11623877,66194.0,66193.0,0.98336504]
[1722427238823,0.12842722,66194.0,66193.0,0.98336504]
[1722427239993,0.12842722,66194.0,66193.0,1.28551104]
[1722427239994,0.0030544,66194.0,66193.0,1.28551104]
[1722427240193,0.0030544,66194.0,66193.0,1.58765704]
[1722427240406,0.0030544,66194.0,66193.0,1.61065704]
[1722427240407,0.07098063,66194.0,66193.0,1.61065704]
[1722427240670,0.07098063,66194.0,66193.0,1.30851104]
[1722427241525,0.0030544,66194.0,66193.0,1.30851104]
[1722427241932,0.04833772,66194.0,66193.0,1.30851104]
[1722427242128,0.0030544,66194.0,66193.0,1.61065704]
[1722427242329,0.0030544,66194.0,66193.0,1.30851104]
[1722427245147,0.04832716,66194.0,66193.0,1.30851104]
[1722427245337,0.0030544,66194.0,66193.0,1.30851104]
[1722427245536,0.04832742,66194.0,66193.0,1.30851104]
[1722427246463,0.0030544,66194.0,66193.0,1.30851104]
[1722427249662,0.0030544,66194.0,66193.0,1.61065704]
[1722427249870,0.0030544,66194.0,66193.0,1.30851104]
[1722427250041,0.0030544,66194.0,66193.0,1.61065704]
[1722427251339,0.0030544,66194.0,66193.0,1.30851104]
[1722427252115,0.0030544,66194.0,66193.0,1.61065704]
[1722427252310,0.0030544,66194.0,66193.0,1.7362085]
[1722427252897,0.0030544,66194.0,66193.0,1.61065704]
[1722427253149,0.0030544,66194.0,66193.0,1.73621051]
[1722427254756,0.0030544,66194.0,66193.0,1.61065704]
[1722427254907,0.0030544,66194.0,66193.0,1.73620851]
[1722427256291,0.0030544,66194.0,66193.0,1.30851104]
[1722427256633,0.06047759,66194.0,66193.0,1.22721104]
[1722427256844,0.01522668,66194.0,66193.0,1.22721104]
[1722427257391,0.06048226,66194.0,66193.0,1.22721104]
[1722427257585,0.01522668,66194.0,66193.0,1.22721104]
[1722427258067,0.0030544,66194.0,66193.0,1.22721104]
[1722427258544,0.01523571,66194.0,66193.0,1.22721104]
[1722427259905,0.01523571,66194.0,66193.0,1.23154204]
[1722427260103,0.08311703,66194.0,66193.0,1.23154204]
[1722427260936,0.01523571,66194.0,66193.0,0.92939604]
[1722427261095,0.08312767,66194.0,66193.0,0.54235004]
[1722427261302,0.01523571,66194.0,66193.0,0.54235004]
[1722427261716,0.01525415,66194.0,66193.0,0.39127704]
[1722427261916,0.01525415,66194.0,66193.0,0.54235004]
[1722427261917,0.12840669,66194.0,66193.0,0.54235004]
[1722427262111,0.01525415,66194.0,66193.0,0.39127704]
[1722427262403,0.12842393,66194.0,66193.0,0.17387704]
[1722427262779,0.01525415,66194.0,66193.0,0.17387704]
[1722427263388,0.01525415,66194.0,66193.0,0.32495004]
[1722427263607,0.1284256,66194.0,66193.0,0.17387704]
[1722427264629,0.1162414,66194.0,66193.0,0.17387704]
[1722427265116,0.12844645,66194.0,66193.0,0.17387704]
[1722427265244,0.01525945,66194.0,66193.0,0.17387704]
[1722427265909,0.01608945,66194.0,66193.0,0.17387704]
[1722427268084,0.0038844,66194.0,66193.0,0.17387704]
[1722427268287,0.01613465,66194.0,66193.0,0.17387704]
[1722427268468,0.0038844,66194.0,66193.0,0.17387704]
[1722427268669,0.01613465,66194.0,66193.0,0.17387704]
[1722427271225,0.0038844,66194.0,66193.0,0.17387704]
[1722427271436,0.0051374,66194.0,66193.0,0.17387704]
[1722427271765,0.01615603,66194.0,66193.0,0.17387704]
[1722427271971,0.01615603,66194.0,66193.0,0.39127704]
[1722427272169,0.01615603,66194.0,66193.0,0.68335004]
[1722427272579,0.01615603,66194.0,66193.0,0.98549604]
[1722427273000,0.01615603,66194.0,66193.0,0.68335004]
[1722427273979,0.01615603,66194.0,66193.0,0.98549604]
[1722427274888,0.01617658,66194.0,66193.0,0.98549604]
[1722427275092,0.01617658,66194.0,66193.0,1.28764204]
[1722427276308,0.01617658,66194.0,66193.0,1.61278804]
[1722427276636,0.11724732,66194.0,66193.0,1.73834578]
[1722427276837,0.0038844,66194.0,66193.0,1.73834578]
[1722427277633,0.0038844,66194.0,66193.0,1.61278804]
[1722427277858,0.0038844,66194.0,66193.0,1.73834472]
[1722427279213,0.0038844,66194.0,66193.0,1.52094472]
[1722427279415,0.0038844,66194.0,66193.0,1.73834472]
[1722427280718,0.0038844,66194.0,66193.0,1.31064204]
[1722427280719,0.01613285,66194.0,66193.0,1.31064204]
[1722427281120,0.0038844,66194.0,66193.0,1.43620454]
[1722427282117,0.0038844,66194.0,66193.0,1.31064204]
[1722427282118,0.12947918,66194.0,66193.0,1.31064204]
[1722427282320,0.01612143,66194.0,66193.0,1.31064204]
[1722427283094,0.0945684,66194.0,66193.0,1.74834941]
[1722427283302,0.04922423,66194.0,66193.0,1.74834941]
[1722427283502,0.04922504,66194.0,66193.0,1.87034941]
[1722427283703,0.0038844,66194.0,66193.0,1.97034941]
[1722427284110,0.0038844,66194.0,66193.0,2.14693404]
[1722427284322,0.0038844,66194.0,66193.0,1.94833262]
[1722427284734,0.0038844,66194.0,66193.0,1.96833262]
[1722427285130,0.0038844,66194.0,66193.0,2.27247862]
[1722427285866,0.0038844,66194.0,66193.0,3.17240062]
[1722427286394,0.0038844,66194.0,66193.0,3.10144662]
[1722427286594,0.0038844,66194.0,66193.0,3.07652362]
[1722427288220,0.0038844,66194.0,66193.0,2.91556362]
[1722427288427,0.0038844,66194.0,66193.0,2.59141762]
[1722427289008,0.0038844,66194.0,66193.0,2.89356362]
[1722427289205,0.0038844,66194.0,66193.0,2.59141762]
[1722427289612,0.0038844,66194.0,66193.0,2.89356362]
[1722427290893,0.0038844,66194.0,66193.0,3.31648762]
[1722427293388,0.00083,66202.0,66201.0,0.359355]
[1722427293632,0.00083,66202.0,66201.0,2.22565595]
[1722427293842,0.00083,66202.0,66201.0,2.82987595]
[1722427294093,0.00083,66202.0,66201.0,2.82985994]
[1722427294633,0.00083,66202.0,66201.0,2.83185994]
[1722427296699,0.04529973,66209.0,66207.0,0.304041]
[1722427296700,0.001253,66208.0,66207.0,0.304041]
[1722427296875,0.001253,66208.0,66207.0,1.28923804]
[1722427297059,0.11407932,66216.0,66208.0,0.755195]
[1722427297060,0.001253,66209.0,66208.0,0.755195]
[1722427297259,0.001253,66209.0,66208.0,1.66954637]
[1722427297459,0.001253,66209.0,66208.0,1.75214637]
[1722427297837,0.06790816,66215.0,66214.0,0.453075]
[1722427297838,0.04527211,66215.0,66214.0,0.453075]
[1722427298043,0.06873816,66216.0,66215.0,0.453069]
[1722427298250,0.06873816,66216.0,66215.0,1.66943437]
[1722427298452,0.00083,66216.0,66215.0,1.44508837]
[1722427298655,0.00083,66216.0,66215.0,1.00064237]
[1722427298857,0.04608748,66216.0,66215.0,1.00064237]
[1722427299067,0.00083,66216.0,66215.0,1.00064237]
[1722427299244,0.00083,66216.0,66215.0,1.30268837]
[1722427299441,0.0460674,66216.0,66215.0,1.30268837]
[1722427299595,0.0600674,66216.0,66215.0,1.30368837]
[1722427300203,0.01483,66216.0,66215.0,1.30368837]
[1722427300403,0.06006571,66216.0,66215.0,1.30368837]
[1722427300671,0.01483,66216.0,66215.0,1.30368837]
[1722427301058,0.02183,66216.0,66215.0,1.30468837]
[1722427303399,0.02183,66216.0,66215.0,0.93074804]
[1722427303772,0.02183,66216.0,66215.0,0.99125304]
[1722427308388,0.15003,66216.0,66215.0,0.36416104]
[1722427308804,0.16207687,66216.0,66215.0,0.36416104]
[1722427309214,0.16207687,66216.0,66215.0,0.45106104]
[1722427309847,0.16207687,66216.0,66215.0,0.30003804]
[1722427309848,0.25246082,66216.0,66215.0,0.30003804]
[1722427310065,0.16207687,66216.0,66215.0,0.30003804]
[1722427310268,0.27628059,66216.0,66215.0,0.30003804]
[1722427310420,0.16329782,66216.0,66215.0,0.30003804]
[1722427310641,0.15125095,66216.0,66215.0,0.30003804]
[1722427310851,0.26424241,66216.0,66215.0,0.30003804]
[1722427311050,0.27632929,66216.0,66215.0,0.30003804]
[1722427311256,0.27510834,66216.0,66215.0,0.21313804]
[1722427311942,0.16211688,66216.0,66215.0,0.21313804]
[1722427312091,0.2751168,66216.0,66215.0,0.21313804]
[1722427313518,0.26305124,66216.0,66215.0,0.21313804]
[1722427313675,0.2751549,66216.0,66215.0,0.21313804]
[1722427314096,0.16213366,66216.0,66215.0,0.21313804]
[1722427315015,0.61519466,66216.0,66215.0,0.21313804]
[1722427315422,0.91723566,66216.0,66215.0,0.21313804]
[1722427316172,0.75082015,66216.0,66215.0,0.21313804]
[1722427316491,0.61519466,66216.0,66215.0,0.21313804]
[1722427317593,0.61520875,66216.0,66215.0,0.21313804]
[1722427318612,0.91724975,66216.0,66215.0,0.21313804]
[1722427318929,0.9266655,66216.0,66215.0,0.002]
[1722427320302,0.91454798,66216.0,66215.0,0.002]
[1722427320503,0.9266346,66216.0,66215.0,0.002]
[1722427320710,0.92663467,66216.0,66215.0,0.002]
[1722427321036,0.61250705,66216.0,66215.0,0.15263304]
[1722427321202,0.56467805,66216.0,66215.0,0.15263304]
[1722427322005,0.18593705,66216.0,66215.0,0.15263304]
[1722427322203,0.48797805,66216.0,66215.0,0.15263304]
[1722427323314,0.03617005,66216.0,66215.0,0.15263304]
[1722427323518,0.48923105,66216.0,66215.0,0.15263304]
[1722427323720,0.18593705,66216.0,66215.0,0.15263304]
[1722427323937,0.17385,66216.0,66215.0,0.15263304]
[1722427324401,0.18590697,66216.0,66215.0,0.15263304]
[1722427324838,0.03388697,66216.0,66215.0,0.15263304]
[1722427325236,0.03488697,66216.0,66215.0,0.15263304]
[1722427327356,0.02283,66216.0,66215.0,0.15263304]
[1722427327565,0.03485664,66216.0,66215.0,0.15263304]
[1722427330722,0.02283,66216.0,66215.0,0.15263304]
[1722427330929,0.03483029,66216.0,66215.0,0.15263304]
[1722427332593,0.03608329,66216.0,66215.0,0.15263304]
[1722427333000,0.18710329,66216.0,66215.0,0.15263304]
[1722427333212,0.62079129,66216.0,66215.0,0.15263304]
[1722427333389,0.62079129,66216.0,66215.0,0.23953304]
[1722427333635,0.77362518,66216.0,66215.0,0.23953304]
[1722427333849,0.77369908,66216.0,66215.0,0.23953304]
[1722427334018,0.76169879,66216.0,66215.0,0.23953304]
[1722427334220,0.77368492,66216.0,66215.0,0.23953304]
[1722427334803,1.07572592,66216.0,66215.0,0.23953304]
[1722427335004,0.92281813,66216.0,66215.0,0.23953304]
[1722427335177,0.57027713,66216.0,66215.0,0.23953304]
[1722427335400,0.48787713,66216.0,66215.0,0.23953304]
[1722427335604,0.64079279,66216.0,66215.0,0.23953304]
[1722427337252,0.17574837,66216.0,66215.0,0.23953304]
[1722427337450,0.17385,66216.0,66215.0,0.23953304]
[1722427337654,0.18704614,66216.0,66215.0,0.23953304]
[1722427337852,0.48908714,66216.0,66215.0,0.23953304]
[1722427338494,0.64200551,66216.0,66215.0,0.23953304]
[1722427338736,0.48783414,66216.0,66215.0,0.23953304]
[1722427339137,0.48908714,66216.0,66215.0,0.23953304]
[1722427339339,0.64200551,66216.0,66215.0,0.23953304]
[1722427339526,0.64075251,66216.0,66215.0,0.23953304]
[1722427339745,0.48783414,66216.0,66215.0,0.23953304]
[1722427340162,0.18704614,66216.0,66215.0,0.23953304]
[1722427340369,0.48908714,66216.0,66215.0,0.23953304]
[1722427340577,0.6300638,66216.0,66215.0,0.23953304]
[1722427340788,0.33868829,66216.0,66215.0,0.23953304]
[1722427341206,0.18576849,66216.0,66215.0,0.23953304]
[1722427341381,0.18702149,66216.0,66215.0,0.23953304]
[1722427343874,0.175103,66216.0,66215.0,0.23953304]
[1722427344309,0.18701494,66216.0,66215.0,0.23953304]
[1722427344516,0.33993474,66216.0,66215.0,0.23953304]
[1722427344692,0.33868174,66216.0,66215.0,0.23953304]
[1722427346175,0.33856887,66216.0,66215.0,0.23953304]
[1722427346378,0.18576194,66216.0,66215.0,0.23953304]
[1722427346578,0.33857701,66216.0,66215.0,0.23953304]
[1722427347008,0.32666507,66216.0,66215.0,0.23953304]
[1722427347414,0.33858412,66216.0,66215.0,0.23953304]
[1722427347637,0.33858412,66216.0,66215.0,0.38533304]
[1722427347865,0.32667704,66216.0,66215.0,0.38533304]
[1722427348159,0.33859305,66216.0,66215.0,0.38533304]
[1722427348457,0.18576601,66216.0,66215.0,0.38533304]
[1722427350366,0.18576293,66216.0,66215.0,0.38533304]
[1722427350708,0.18576837,66216.0,66215.0,0.38533304]
[1722427351107,0.18576837,66216.0,66215.0,0.30423304]
[1722427352362,0.48780937,66216.0,66215.0,0.30423304]
[1722427352559,0.43882937,66216.0,66215.0,0.30423304]
[1722427352962,0.15102,66216.0,66215.0,0.30423304]
[1722427354451,0.15102,66216.0,66215.0,0.30123304]
[1722427355490,0.45496816,66220.0,66216.0,0.0793]
[1722427355719,0.152269,66219.0,66217.0,0.21533304]
[1722427356482,0.151016,66218.0,66217.0,0.21533304]
[1722427357252,0.001253,66219.0,66217.0,0.21533304]